[Event "Early-Titled-Tuesday-Blitz-April-23-2024"]
[Site "Chess.com"]
[Date "2024.04.23"]
[Round "8"]
[White "FGHSMN"]
[Black "blitzking1729"]
[Result "0-1"]
[WhiteElo "2903"]
[BlackElo "2780"]
[TimeControl "180+1"]
[EndTime "9:32:47 PDT"]
[Termination "blitzking1729 won by resignation"]

1. e4 {[%clk 0:03:00.9]} 1... e5 {[%clk 0:02:58.5]} 2. Nf3 {[%clk 0:03:00.5]}
2... Nc6 {[%clk 0:02:58.5]} 3. Bc4 {[%clk 0:03:01]} 3... Nf6 {[%clk 0:02:58.2]}
4. d3 {[%clk 0:03:01.7]} 4... Bc5 {[%clk 0:02:58.1]} 5. O-O {[%clk 0:03:02.3]}
5... d6 {[%clk 0:02:57.8]} 6. c3 {[%clk 0:03:01.8]} 6... h6 {[%clk 0:02:57.4]}
7. Re1 {[%clk 0:03:01.5]} 7... O-O {[%clk 0:02:53.9]} 8. h3 {[%clk 0:03:00.2]}
8... a6 {[%clk 0:02:54.2]} 9. a4 {[%clk 0:03:00.1]} 9... Ba7 {[%clk 0:02:51.3]}
10. Nbd2 {[%clk 0:03:00.4]} 10... Ne7 {[%clk 0:02:51.2]} 11. Nf1 {[%clk
0:02:58.4]} 11... Ng6 {[%clk 0:02:46.1]} 12. Ng3 {[%clk 0:02:57.2]} 12... Be6
{[%clk 0:02:46]} 13. Bxe6 {[%clk 0:02:48.7]} 13... fxe6 {[%clk 0:02:45.9]} 14.
d4 {[%clk 0:02:45]} 14... exd4 {[%clk 0:02:45.4]} 15. cxd4 {[%clk 0:02:45.9]}
15... d5 {[%clk 0:02:45]} 16. e5 {[%clk 0:02:38.1]} 16... Nd7 {[%clk 0:02:43.4]}
17. b4 {[%clk 0:02:36.9]} 17... a5 {[%clk 0:02:42.4]} 18. Qd3 {[%clk 0:02:25.3]}
18... Nh4 {[%clk 0:02:23.2]} 19. Nxh4 {[%clk 0:01:49.8]} 19... Qxh4 {[%clk
0:02:21]} 20. Be3 {[%clk 0:01:49.5]} 20... axb4 {[%clk 0:02:17.2]} 21. Qb5
{[%clk 0:01:46.1]} 21... Nb6 {[%clk 0:01:56.6]} 22. Qxb4 {[%clk 0:01:43.9]}
22... Nc4 {[%clk 0:01:56]} 23. Rad1 {[%clk 0:01:32.7]} 23... Bb6 {[%clk
0:01:54.5]} 24. Re2 {[%clk 0:01:27.4]} 24... Rfe8 {[%clk 0:01:42.1]} 25. Nf1
{[%clk 0:01:23.2]} 25... Qe7 {[%clk 0:01:41.1]} 26. Qb3 {[%clk 0:01:20.7]} 26...
Qa3 {[%clk 0:01:38.3]} 27. Qb1 {[%clk 0:01:17.2]} 27... Qxa4 {[%clk 0:01:36.7]}
28. Bxh6 {[%clk 0:01:14.2]} 28... Re7 {[%clk 0:01:27.5]} 29. Bg5 {[%clk
0:01:10.6]} 29... Rf7 {[%clk 0:01:27.6]} 30. Ree1 {[%clk 0:01:01.5]} 30... Qa2
{[%clk 0:01:25.7]} 31. Qxa2 {[%clk 0:00:52.9]} 31... Rxa2 {[%clk 0:01:26.4]} 32.
f4 {[%clk 0:00:44.3]} 32... Nb2 {[%clk 0:01:15.7]} 33. Rd2 {[%clk 0:00:41.9]}
33... Ba5 {[%clk 0:01:15.5]} 34. Ree2 {[%clk 0:00:33.6]} 34... Bxd2 {[%clk
0:01:15.8]} 35. Rxd2 {[%clk 0:00:34.5]} 35... b5 {[%clk 0:01:06.1]} 36. Kh2
{[%clk 0:00:32.6]} 36... b4 {[%clk 0:01:05.6]} 37. Rc2 {[%clk 0:00:22.9]} 37...
b3 {[%clk 0:01:05.2]} 38. Rc3 {[%clk 0:00:23.5]} 38... Ra3 {[%clk 0:00:52.7]}
39. Nd2 {[%clk 0:00:23.8]} 39... Na4 {[%clk 0:00:43.3]} 40. Rxb3 {[%clk
0:00:24]} 40... Rxb3 {[%clk 0:00:43.6]} 41. Nxb3 {[%clk 0:00:24.8]} 41... Rf8
{[%clk 0:00:43.9]} 42. g4 {[%clk 0:00:18.8]} 42... Rb8 {[%clk 0:00:43.6]} 43.
Na5 {[%clk 0:00:19.5]} 43... c5 {[%clk 0:00:34.5]} 44. dxc5 {[%clk 0:00:16.5]}
44... Nxc5 {[%clk 0:00:35]} 45. f5 {[%clk 0:00:17.1]} 45... Ne4 {[%clk 0:00:34]}
46. Bf4 {[%clk 0:00:11]} 46... Rb2+ {[%clk 0:00:33.6]} 47. Kg1 {[%clk
0:00:11.6]} 47... exf5 {[%clk 0:00:33.8]} 48. gxf5 {[%clk 0:00:11.6]} 48... Rf2
{[%clk 0:00:34.3]} 49. Be3 {[%clk 0:00:06.9]} 49... Rxf5 {[%clk 0:00:34.4]} 50.
Nc6 {[%clk 0:00:07.8]} 50... Rf3 {[%clk 0:00:33.6]} 51. Ne7+ {[%clk 0:00:05.2]}
51... Kf7 {[%clk 0:00:32.4]} 52. Nxd5 {[%clk 0:00:05.7]} 52... Ke6 {[%clk
0:00:32.6]} 53. Kg2 {[%clk 0:00:05.9]} 53... Rg3+ {[%clk 0:00:32.8]} 54. Kh2
{[%clk 0:00:04.7]} 54... Kxd5 {[%clk 0:00:33.5]} 0-1

[Event "Early-Titled-Tuesday-Blitz-April-23-2024"]
[Site "Chess.com"]
[Date "2024.04.23"]
[Round "8"]
[White "ravengelic"]
[Black "Matibar"]
[Result "0-1"]
[WhiteElo "2673"]
[BlackElo "2853"]
[TimeControl "180+1"]
[EndTime "9:32:47 PDT"]
[Termination "Matibar won by resignation"]

1. d4 {[%clk 0:03:00.9]} 1... f5 {[%clk 0:02:58.4]} 2. Bf4 {[%clk 0:03:00.3]}
2... Nf6 {[%clk 0:02:57.3]} 3. e3 {[%clk 0:03:00.8]} 3... g6 {[%clk 0:02:57.5]}
4. h4 {[%clk 0:03:01.3]} 4... d6 {[%clk 0:02:39.9]} 5. h5 {[%clk 0:03:01.4]}
5... Rg8 {[%clk 0:02:40.4]} 6. hxg6 {[%clk 0:03:01.4]} 6... hxg6 {[%clk
0:02:41.3]} 7. Nc3 {[%clk 0:03:01.6]} 7... g5 {[%clk 0:02:35.7]} 8. Bg3 {[%clk
0:03:01.7]} 8... e6 {[%clk 0:02:32.2]} 9. Be2 {[%clk 0:02:59.7]} 9... Qe7 {[%clk
0:02:30.5]} 10. Nf3 {[%clk 0:02:56.1]} 10... Nc6 {[%clk 0:02:23.5]} 11. Qd2
{[%clk 0:02:55.7]} 11... Bd7 {[%clk 0:02:21.7]} 12. O-O-O {[%clk 0:02:55.6]}
12... O-O-O {[%clk 0:02:20.2]} 13. Kb1 {[%clk 0:02:56]} 13... Ne4 {[%clk
0:01:52.8]} 14. Nxe4 {[%clk 0:02:54.9]} 14... fxe4 {[%clk 0:01:53.7]} 15. Nh2
{[%clk 0:02:55.8]} 15... Bg7 {[%clk 0:01:53.6]} 16. Ng4 {[%clk 0:02:55.3]} 16...
Rh8 {[%clk 0:01:50.7]} 17. a3 {[%clk 0:02:44.9]} 17... Qf7 {[%clk 0:01:40.9]}
18. Qc3 {[%clk 0:02:34.9]} 18... Kb8 {[%clk 0:01:36.8]} 19. Qb3 {[%clk
0:02:35.2]} 19... Ne7 {[%clk 0:01:32.8]} 20. c4 {[%clk 0:02:26.4]} 20... Nf5
{[%clk 0:01:32.2]} 21. c5 {[%clk 0:02:10.7]} 21... Nxg3 {[%clk 0:01:31.6]} 22.
fxg3 {[%clk 0:02:11.1]} 22... Bc6 {[%clk 0:01:21.3]} 23. Rhf1 {[%clk 0:02:07.7]}
23... Qe7 {[%clk 0:01:18.1]} 24. Bb5 {[%clk 0:02:05]} 24... Bd5 {[%clk
0:01:16.9]} 25. Bc4 {[%clk 0:02:03]} 25... dxc5 {[%clk 0:01:13.1]} 26. Ne5
{[%clk 0:01:48.4]} 26... Bxe5 {[%clk 0:01:03.7]} 27. dxe5 {[%clk 0:01:49.3]}
27... c6 {[%clk 0:01:03.9]} 28. Rf6 {[%clk 0:01:42.7]} 28... Qc7 {[%clk
0:00:50.2]} 29. Qc3 {[%clk 0:00:59.2]} 29... Bxc4 {[%clk 0:00:28.7]} 30. Rxd8+
{[%clk 0:01:00.1]} 30... Rxd8 {[%clk 0:00:24.8]} 31. Qxc4 {[%clk 0:01:01]} 31...
Qxe5 {[%clk 0:00:24.6]} 32. Rxe6 {[%clk 0:01:00.6]} 32... Qxg3 {[%clk
0:00:22.7]} 33. Qxe4 {[%clk 0:00:58]} 33... a6 {[%clk 0:00:19.4]} 34. Qe5+
{[%clk 0:00:57.6]} 34... Qxe5 {[%clk 0:00:18.9]} 35. Rxe5 {[%clk 0:00:58.5]}
35... Rd5 {[%clk 0:00:19.6]} 36. Re8+ {[%clk 0:00:52.3]} 36... Kc7 {[%clk
0:00:19.9]} 37. Kc2 {[%clk 0:00:53.2]} 37... Rf5 {[%clk 0:00:19.5]} 38. g4
{[%clk 0:00:47.2]} 38... Rf2+ {[%clk 0:00:18.5]} 39. Kc3 {[%clk 0:00:47.6]}
39... Rg2 {[%clk 0:00:18.5]} 40. Re4 {[%clk 0:00:46.4]} 40... Kd6 {[%clk
0:00:18.1]} 41. b3 {[%clk 0:00:42.1]} 41... b5 {[%clk 0:00:18.6]} 42. a4 {[%clk
0:00:41.5]} 42... Kd5 {[%clk 0:00:18.6]} 43. Re8 {[%clk 0:00:33.9]} 43... Rxg4
{[%clk 0:00:18.7]} 44. axb5 {[%clk 0:00:31.1]} 44... axb5 {[%clk 0:00:19.6]} 45.
Rd8+ {[%clk 0:00:28.3]} 45... Ke6 {[%clk 0:00:19.8]} 46. Re8+ {[%clk 0:00:26]}
46... Kd7 {[%clk 0:00:19.9]} 47. Re5 {[%clk 0:00:26.5]} 47... Kd6 {[%clk
0:00:20.3]} 48. Rf5 {[%clk 0:00:25.1]} 48... Rg1 {[%clk 0:00:19.4]} 49. Kd3
{[%clk 0:00:21.2]} 49... g4 {[%clk 0:00:19.1]} 50. Ke4 {[%clk 0:00:21.6]} 50...
g3 {[%clk 0:00:19.1]} 51. Rf6+ {[%clk 0:00:22]} 51... Kc7 {[%clk 0:00:18.8]} 52.
Rg6 {[%clk 0:00:22.9]} 52... g2 {[%clk 0:00:18.9]} 53. Ke5 {[%clk 0:00:20.1]}
53... c4 {[%clk 0:00:18.7]} 54. bxc4 {[%clk 0:00:20]} 54... bxc4 {[%clk
0:00:19]} 55. Ke4 {[%clk 0:00:15.4]} 55... c3 {[%clk 0:00:18.4]} 56. Kf3 {[%clk
0:00:11.6]} 56... c2 {[%clk 0:00:17.7]} 57. Kf2 {[%clk 0:00:12.5]} 57... c1=Q
{[%clk 0:00:17.7]} 0-1

[Event "Early-Titled-Tuesday-Blitz-April-23-2024"]
[Site "Chess.com"]
[Date "2024.04.23"]
[Round "8"]
[White "tusplingher"]
[Black "Der_Balak_3Halak"]
[Result "1-0"]
[WhiteElo "2635"]
[BlackElo "2439"]
[TimeControl "180+1"]
[EndTime "9:32:48 PDT"]
[Termination "tusplingher won by checkmate"]

1. e4 {[%clk 0:03:00.9]} 1... c5 {[%clk 0:02:59.6]} 2. Nf3 {[%clk 0:02:52.8]}
2... Nc6 {[%clk 0:02:58.4]} 3. Bc4 {[%clk 0:02:44.3]} 3... e6 {[%clk 0:02:56.4]}
4. O-O {[%clk 0:02:41]} 4... d5 {[%clk 0:02:55.3]} 5. Bb5 {[%clk 0:02:41.2]}
5... dxe4 {[%clk 0:02:48.3]} 6. Ne5 {[%clk 0:02:40.9]} 6... Bd7 {[%clk
0:02:48.7]} 7. Bxc6 {[%clk 0:02:40.8]} 7... Bxc6 {[%clk 0:02:47.7]} 8. Nxc6
{[%clk 0:02:40.4]} 8... bxc6 {[%clk 0:02:48.6]} 9. Nc3 {[%clk 0:02:39.5]} 9...
Nf6 {[%clk 0:02:47.8]} 10. Qe2 {[%clk 0:02:36.7]} 10... Bd6 {[%clk 0:02:41.8]}
11. Nxe4 {[%clk 0:02:35.2]} 11... Nxe4 {[%clk 0:02:40.3]} 12. Qxe4 {[%clk
0:02:35.5]} 12... Qc7 {[%clk 0:02:38.7]} 13. h3 {[%clk 0:02:34.1]} 13... O-O
{[%clk 0:02:35.1]} 14. d3 {[%clk 0:02:34.1]} 14... Rab8 {[%clk 0:02:32.7]} 15.
b3 {[%clk 0:02:24.8]} 15... Be5 {[%clk 0:02:32.1]} 16. Rb1 {[%clk 0:02:21.4]}
16... Rb4 {[%clk 0:02:19.3]} 17. c4 {[%clk 0:02:14.3]} 17... Rb7 {[%clk
0:02:01.1]} 18. Be3 {[%clk 0:02:11.1]} 18... Qd6 {[%clk 0:01:54.7]} 19. Rfe1
{[%clk 0:02:08.6]} 19... Bd4 {[%clk 0:01:53.3]} 20. Bf4 {[%clk 0:02:03]} 20...
Qd7 {[%clk 0:01:44.2]} 21. Be5 {[%clk 0:02:01.5]} 21... Rd8 {[%clk 0:01:39]} 22.
Bxd4 {[%clk 0:02:00.9]} 22... cxd4 {[%clk 0:01:37.3]} 23. Qe5 {[%clk 0:01:56.6]}
23... Qd6 {[%clk 0:01:19.4]} 24. Qxd6 {[%clk 0:01:49.9]} 24... Rxd6 {[%clk
0:01:20.3]} 25. Re5 {[%clk 0:01:50.1]} 25... f6 {[%clk 0:01:17]} 26. Ra5 {[%clk
0:01:49.1]} 26... Kf7 {[%clk 0:01:04.4]} 27. Re1 {[%clk 0:01:44.8]} 27... e5
{[%clk 0:01:00.5]} 28. g3 {[%clk 0:01:43.8]} 28... h5 {[%clk 0:01:00.1]} 29. h4
{[%clk 0:01:43.3]} 29... Ke6 {[%clk 0:00:59.4]} 30. f4 {[%clk 0:01:42.2]} 30...
Kd7 {[%clk 0:00:36.7]} 31. fxe5 {[%clk 0:01:41.7]} 31... Re6 {[%clk 0:00:37.3]}
32. Kf2 {[%clk 0:01:38.8]} 32... f5 {[%clk 0:00:20.1]} 33. Kf3 {[%clk
0:01:33.7]} 33... g6 {[%clk 0:00:19.5]} 34. Kf4 {[%clk 0:01:30.8]} 34... Rc7
{[%clk 0:00:19.6]} 35. Kg5 {[%clk 0:01:29.1]} 35... c5 {[%clk 0:00:19.3]} 36.
Kf4 {[%clk 0:01:27.9]} 36... Ke7 {[%clk 0:00:18.9]} 37. a3 {[%clk 0:01:27.7]}
37... Rb6 {[%clk 0:00:17]} 38. Rb1 {[%clk 0:01:26.6]} 38... Rcb7 {[%clk
0:00:10.6]} 39. Rxc5 {[%clk 0:01:25.5]} 39... Rxb3 {[%clk 0:00:11.3]} 40. Rc7+
{[%clk 0:01:05.9]} 40... Rxc7 {[%clk 0:00:10.4]} 41. Rxb3 {[%clk 0:01:06.8]}
41... Ke6 {[%clk 0:00:09]} 42. Rb8 {[%clk 0:01:06.3]} 42... Kf7 {[%clk
0:00:08.3]} 43. Kg5 {[%clk 0:01:03.8]} 43... Re7 {[%clk 0:00:06.8]} 44. Kf4
{[%clk 0:01:01.8]} 44... Rd7 {[%clk 0:00:07.3]} 45. Rb5 {[%clk 0:01:00.8]} 45...
Ke6 {[%clk 0:00:06.9]} 46. Ra5 {[%clk 0:01:01.2]} 46... Rb7 {[%clk 0:00:06.7]}
47. Ra6+ {[%clk 0:01:00.7]} 47... Kf7 {[%clk 0:00:07.3]} 48. Kg5 {[%clk
0:01:01.1]} 48... Re7 {[%clk 0:00:04.3]} 49. Rf6+ {[%clk 0:00:59.6]} 49... Kg7
{[%clk 0:00:04.3]} 50. Rxg6+ {[%clk 0:00:59.7]} 50... Kf7 {[%clk 0:00:04.3]} 51.
Rf6+ {[%clk 0:00:59.3]} 51... Kg7 {[%clk 0:00:04.7]} 52. Kxf5 {[%clk 0:01:00.2]}
52... a5 {[%clk 0:00:03.4]} 53. Rg6+ {[%clk 0:00:59.7]} 53... Kh7 {[%clk
0:00:03.6]} 54. Rg5 {[%clk 0:00:59.9]} 54... Rf7+ {[%clk 0:00:03.5]} 55. Ke6
{[%clk 0:00:59.8]} 55... Rf3 {[%clk 0:00:04.2]} 56. Kd7 {[%clk 0:00:58.3]} 56...
Rxd3 {[%clk 0:00:03.3]} 57. e6 {[%clk 0:00:58.9]} 57... Re3 {[%clk 0:00:03.1]}
58. e7 {[%clk 0:00:59.4]} 58... d3 {[%clk 0:00:03.5]} 59. Rd5 {[%clk 0:00:59.6]}
59... Kg6 {[%clk 0:00:01.7]} 60. e8=Q+ {[%clk 0:00:59.5]} 60... Rxe8 {[%clk
0:00:02.6]} 61. Kxe8 {[%clk 0:01:00.2]} 61... a4 {[%clk 0:00:02.4]} 62. Rxd3
{[%clk 0:01:00.3]} 62... Kf5 {[%clk 0:00:03.3]} 63. c5 {[%clk 0:01:01.1]} 63...
Kg4 {[%clk 0:00:02.3]} 64. c6 {[%clk 0:01:01]} 64... Kh3 {[%clk 0:00:03.2]} 65.
c7 {[%clk 0:01:01.7]} 65... Kh2 {[%clk 0:00:03.7]} 66. c8=Q {[%clk 0:01:02.2]}
66... Kg2 {[%clk 0:00:04.5]} 67. g4 {[%clk 0:01:02.5]} 67... Kf2 {[%clk
0:00:03.3]} 68. gxh5 {[%clk 0:01:02.1]} 68... Ke2 {[%clk 0:00:04.2]} 69. Rc3
{[%clk 0:01:01.9]} 69... Kd2 {[%clk 0:00:03.8]} 70. h6 {[%clk 0:01:01.9]} 70...
Kd1 {[%clk 0:00:03.7]} 71. Rc2 {[%clk 0:01:01.1]} 71... Ke1 {[%clk 0:00:03.7]}
72. h7 {[%clk 0:01:01.1]} 72... Kd1 {[%clk 0:00:04.5]} 73. h8=Q {[%clk 0:01:00]}
73... Ke1 {[%clk 0:00:05.4]} 74. Qe6+ {[%clk 0:00:59.8]} 74... Kd1 {[%clk
0:00:06.3]} 75. Qd4+ {[%clk 0:00:59.3]} 75... Kxc2 {[%clk 0:00:05.9]} 76. Qec4+
{[%clk 0:00:59.4]} 76... Kb1 {[%clk 0:00:05.8]} 77. Qd1+ {[%clk 0:00:59]} 77...
Kb2 {[%clk 0:00:06]} 78. Qdc1# {[%clk 0:00:57.4]} 1-0

[Event "Early-Titled-Tuesday-Blitz-April-23-2024"]
[Site "Chess.com"]
[Date "2024.04.23"]
[Round "8"]
[White "Flawless_Fighter"]
[Black "MFatigue"]
[Result "1/2-1/2"]
[WhiteElo "2718"]
[BlackElo "2560"]
[TimeControl "180+1"]
[EndTime "9:32:50 PDT"]
[Termination "Game drawn - insufficient material"]

1. Nf3 {[%clk 0:03:00.9]} 1... d5 {[%clk 0:02:54.5]} 2. d4 {[%clk 0:03:00]} 2...
Nf6 {[%clk 0:02:54]} 3. g3 {[%clk 0:03:00.5]} 3... c5 {[%clk 0:02:51.4]} 4. Bg2
{[%clk 0:02:58.8]} 4... cxd4 {[%clk 0:02:52.3]} 5. Nxd4 {[%clk 0:02:59.1]} 5...
e5 {[%clk 0:02:42]} 6. Nf3 {[%clk 0:02:56.5]} 6... Nc6 {[%clk 0:02:42.1]} 7. O-O
{[%clk 0:02:56.8]} 7... Be7 {[%clk 0:02:38.8]} 8. b3 {[%clk 0:02:47.7]} 8... O-O
{[%clk 0:02:35.7]} 9. Bb2 {[%clk 0:02:48]} 9... e4 {[%clk 0:02:35.8]} 10. Nd4
{[%clk 0:02:47.7]} 10... Nxd4 {[%clk 0:02:36]} 11. Qxd4 {[%clk 0:02:47.4]} 11...
Be6 {[%clk 0:02:33.1]} 12. Nc3 {[%clk 0:02:34.6]} 12... b6 {[%clk 0:02:27.3]}
13. e3 {[%clk 0:02:32.5]} 13... Bc5 {[%clk 0:02:23.7]} 14. Qd2 {[%clk
0:02:29.6]} 14... Qe7 {[%clk 0:02:23.5]} 15. a3 {[%clk 0:02:29.3]} 15... a5
{[%clk 0:02:23.4]} 16. Ne2 {[%clk 0:02:24.1]} 16... Rfd8 {[%clk 0:02:14.5]} 17.
Rfd1 {[%clk 0:02:21.8]} 17... Bg4 {[%clk 0:02:13.1]} 18. h3 {[%clk 0:02:20.7]}
18... Bf3 {[%clk 0:01:50.9]} 19. Re1 {[%clk 0:02:20.8]} 19... Bxg2 {[%clk
0:01:49.6]} 20. Kxg2 {[%clk 0:02:20.9]} 20... Rac8 {[%clk 0:01:45.7]} 21. Red1
{[%clk 0:02:16.2]} 21... Rd7 {[%clk 0:01:29]} 22. Nf4 {[%clk 0:02:13.8]} 22...
Rcd8 {[%clk 0:01:29.4]} 23. Qe2 {[%clk 0:02:12.5]} 23... d4 {[%clk 0:01:19.3]}
24. exd4 {[%clk 0:02:06.2]} 24... Bxd4 {[%clk 0:01:20.2]} 25. Bxd4 {[%clk
0:02:06.4]} 25... Rxd4 {[%clk 0:01:21.1]} 26. Rxd4 {[%clk 0:02:05.1]} 26... Rxd4
{[%clk 0:01:22]} 27. Rd1 {[%clk 0:02:05.5]} 27... Rxd1 {[%clk 0:01:07.7]} 28.
Qxd1 {[%clk 0:02:05.3]} 28... g5 {[%clk 0:01:08.6]} 29. Ne2 {[%clk 0:01:54.2]}
29... Kg7 {[%clk 0:01:02.7]} 30. Qd4 {[%clk 0:01:53.3]} 30... Qe6 {[%clk
0:00:51.3]} 31. g4 {[%clk 0:01:36.2]} 31... Qd5 {[%clk 0:00:38.2]} 32. Qe3
{[%clk 0:01:35.7]} 32... h5 {[%clk 0:00:30.1]} 33. c4 {[%clk 0:01:32.5]} 33...
Qe5 {[%clk 0:00:18.8]} 34. Ng3 {[%clk 0:01:24.2]} 34... hxg4 {[%clk 0:00:17.1]}
35. hxg4 {[%clk 0:01:25.1]} 35... Nxg4 {[%clk 0:00:16.7]} 36. Qxe4 {[%clk
0:01:20.5]} 36... Qxe4+ {[%clk 0:00:16.9]} 37. Nxe4 {[%clk 0:01:21.4]} 37... Kg6
{[%clk 0:00:16.4]} 38. Nd6 {[%clk 0:01:17.7]} 38... Ne5 {[%clk 0:00:16.7]} 39.
Nc8 {[%clk 0:01:14.5]} 39... Nd7 {[%clk 0:00:16.6]} 40. Kf3 {[%clk 0:01:14.6]}
40... Kf5 {[%clk 0:00:13.9]} 41. Ke3 {[%clk 0:01:12.9]} 41... Ke5 {[%clk
0:00:13.8]} 42. Kd3 {[%clk 0:00:53.6]} 42... f5 {[%clk 0:00:13.9]} 43. Ne7
{[%clk 0:00:54.2]} 43... g4 {[%clk 0:00:10.9]} 44. Ng6+ {[%clk 0:00:50.5]} 44...
Kd6 {[%clk 0:00:11]} 45. Kd4 {[%clk 0:00:47.7]} 45... Nc5 {[%clk 0:00:11.2]} 46.
b4 {[%clk 0:00:45.8]} 46... axb4 {[%clk 0:00:12.1]} 47. axb4 {[%clk 0:00:46.7]}
47... Ne6+ {[%clk 0:00:12.9]} 48. Ke3 {[%clk 0:00:47.2]} 48... Kd7 {[%clk
0:00:09.8]} 49. Nh4 {[%clk 0:00:43.9]} 49... f4+ {[%clk 0:00:08.5]} 50. Ke4
{[%clk 0:00:44.5]} 50... g3 {[%clk 0:00:09.4]} 51. fxg3 {[%clk 0:00:37.7]} 51...
fxg3 {[%clk 0:00:10.3]} 52. Kf3 {[%clk 0:00:37.6]} 52... Nd4+ {[%clk 0:00:09.6]}
53. Kxg3 {[%clk 0:00:37.6]} 53... Nc2 {[%clk 0:00:10.3]} 54. b5 {[%clk
0:00:37.3]} 54... Na3 {[%clk 0:00:10.6]} 55. Kf4 {[%clk 0:00:33.9]} 55... Nxc4
{[%clk 0:00:11.2]} 56. Nf3 {[%clk 0:00:30]} 56... Kd6 {[%clk 0:00:11.1]} 57. Ke4
{[%clk 0:00:29]} 57... Kc5 {[%clk 0:00:11.5]} 58. Kd3 {[%clk 0:00:23.3]} 58...
Nd6 {[%clk 0:00:10.9]} 59. Ne5 {[%clk 0:00:21.1]} 59... Kxb5 {[%clk 0:00:10]}
60. Nd7 {[%clk 0:00:21.5]} 60... Kc6 {[%clk 0:00:10.2]} 61. Nxb6 {[%clk
0:00:22.1]} 1/2-1/2

[Event "Early-Titled-Tuesday-Blitz-April-23-2024"]
[Site "Chess.com"]
[Date "2024.04.23"]
[Round "8"]
[White "zurzan"]
[Black "SaiAgni_98"]
[Result "1/2-1/2"]
[WhiteElo "2141"]
[BlackElo "2460"]
[TimeControl "180+1"]
[EndTime "9:32:52 PDT"]
[Termination "Game drawn by repetition"]

1. c4 {[%clk 0:03:00.9]} 1... c5 {[%clk 0:02:56.2]} 2. g3 {[%clk 0:03:01.8]}
2... Nc6 {[%clk 0:02:54]} 3. Bg2 {[%clk 0:03:02.7]} 3... g6 {[%clk 0:02:54.3]}
4. Nf3 {[%clk 0:03:03.6]} 4... Bg7 {[%clk 0:02:52.8]} 5. Nc3 {[%clk 0:03:04.5]}
5... e5 {[%clk 0:02:50.6]} 6. d3 {[%clk 0:03:03]} 6... Nge7 {[%clk 0:02:49.9]}
7. O-O {[%clk 0:03:01.6]} 7... d6 {[%clk 0:02:50.1]} 8. h3 {[%clk 0:03:00.3]}
8... h6 {[%clk 0:02:50]} 9. e4 {[%clk 0:03:00]} 9... O-O {[%clk 0:02:48.9]} 10.
Rb1 {[%clk 0:02:59.8]} 10... Be6 {[%clk 0:02:45.8]} 11. a3 {[%clk 0:02:59.2]}
11... a5 {[%clk 0:02:45.7]} 12. Nd5 {[%clk 0:02:56.4]} 12... Kh7 {[%clk
0:02:41.7]} 13. Bd2 {[%clk 0:02:51.4]} 13... f5 {[%clk 0:02:37.7]} 14. Qc1
{[%clk 0:02:37.4]} 14... fxe4 {[%clk 0:02:28]} 15. dxe4 {[%clk 0:02:36.5]} 15...
Rxf3 {[%clk 0:01:58]} 16. Bxf3 {[%clk 0:02:33.6]} 16... Nd4 {[%clk 0:01:58.3]}
17. Qd1 {[%clk 0:02:21.5]} 17... Bxh3 {[%clk 0:01:51.8]} 18. Re1 {[%clk
0:02:14.5]} 18... Nec6 {[%clk 0:01:33.7]} 19. Bg2 {[%clk 0:01:40]} 19... Be6
{[%clk 0:01:26]} 20. Ne3 {[%clk 0:01:37.4]} 20... Qd7 {[%clk 0:01:22.8]} 21. b4
{[%clk 0:01:31.8]} 21... axb4 {[%clk 0:01:19.6]} 22. axb4 {[%clk 0:01:31.5]}
22... Rf8 {[%clk 0:01:14.2]} 23. bxc5 {[%clk 0:01:28.8]} 23... dxc5 {[%clk
0:01:15.1]} 24. Bc3 {[%clk 0:01:01.1]} 24... h5 {[%clk 0:01:09.5]} 25. Bxd4
{[%clk 0:01:00]} 25... Nxd4 {[%clk 0:01:05.4]} 26. Nd5 {[%clk 0:00:58.1]} 26...
Bg4 {[%clk 0:00:55.7]} 27. Qd3 {[%clk 0:00:52.1]} 27... Nf3+ {[%clk 0:00:32.2]}
28. Kf1 {[%clk 0:00:34.9]} 28... Nxe1 {[%clk 0:00:27.9]} 29. Rxe1 {[%clk
0:00:33.9]} 29... Qf7 {[%clk 0:00:27.8]} 30. Qc2 {[%clk 0:00:23.5]} 30... Bf3
{[%clk 0:00:24.5]} 31. Ne3 {[%clk 0:00:19.3]} 31... Bh6 {[%clk 0:00:21.7]} 32.
Bxf3 {[%clk 0:00:18.5]} 32... Qxf3 {[%clk 0:00:22.4]} 33. Kg1 {[%clk 0:00:19.1]}
33... Bxe3 {[%clk 0:00:17]} 34. Rxe3 {[%clk 0:00:19.1]} 34... Qf7 {[%clk
0:00:17.1]} 35. Qd2 {[%clk 0:00:17.9]} 35... Qe6 {[%clk 0:00:07.4]} 36. Rd3
{[%clk 0:00:17.7]} 36... Rf7 {[%clk 0:00:07.3]} 37. Rd5 {[%clk 0:00:16.6]} 37...
b6 {[%clk 0:00:07.1]} 38. Rd6 {[%clk 0:00:15.5]} 38... Qxc4 {[%clk 0:00:07]} 39.
Rxb6 {[%clk 0:00:14.5]} 39... Qxe4 {[%clk 0:00:06.8]} 40. Rd6 {[%clk 0:00:12.8]}
40... c4 {[%clk 0:00:07]} 41. Rd7 {[%clk 0:00:12.2]} 41... Rxd7 {[%clk
0:00:05.5]} 42. Qxd7+ {[%clk 0:00:12.4]} 42... Kh6 {[%clk 0:00:04.9]} 43. Qe8
{[%clk 0:00:11.2]} 43... Qb1+ {[%clk 0:00:04.3]} 44. Kh2 {[%clk 0:00:10]} 44...
Kg7 {[%clk 0:00:04.2]} 45. Qe7+ {[%clk 0:00:09.8]} 45... Kg8 {[%clk 0:00:04.8]}
46. Qe8+ {[%clk 0:00:09.2]} 46... Kh7 {[%clk 0:00:03.5]} 47. Qf7+ {[%clk
0:00:09.2]} 47... Kh8 {[%clk 0:00:03]} 48. Qf8+ {[%clk 0:00:09.4]} 48... Kh7
{[%clk 0:00:03.3]} 49. Qf7+ {[%clk 0:00:09.8]} 49... Kh8 {[%clk 0:00:03.9]} 50.
Qf8+ {[%clk 0:00:09.9]} 50... Kh7 {[%clk 0:00:04.1]} 51. Qf7+ {[%clk 0:00:10.3]}
1/2-1/2